bitfinex-derivatives/quotes_SOLF0:USTF0_20260222
["timestamp","ask_amount","ask_price","bid_price","bid_amount"]
[1771778127753,3.95132602,83.295,83.264,3.9712572]
[1771778146483,3.95132602,83.295,83.27,2.58339933]
[1771778147179,3.87340879,83.275,83.247,22.40478431]
[1771778147387,3.87340879,83.275,83.243,3.81173989]
[1771778148181,3.87340879,83.275,83.25,2.58339933]
[1771778150280,11.16474029,83.325,83.27,3.81183922]
[1771778150485,2.58339933,83.33,83.278,3.922e-05]
[1771778150486,3.87340879,83.314,83.278,3.922e-05]
[1771778150684,3.87340879,83.315,83.28,2.58339933]
[1771778151786,10.8062,83.311,83.28,2.58339933]
[1771778152286,10.807,83.304,83.28,9.933e-05]
[1771778153189,10.807,83.304,83.277,3.28291727]
[1771778153486,10.807,83.304,83.28,2.58339933]
[1771778153688,3.87340879,83.315,83.281,3.28291727]
[1771778155189,3.87340879,83.313,83.271,3.35080399]
[1771778156784,3.87340879,83.313,83.223,36.04]
[1771778156785,3.87340879,83.306,83.259,3.35079711]
[1771778156985,3.0,83.331,83.24,10.8153]
[1771778156986,3.87340879,83.299,83.24,13.39869933]
[1771778157184,3.87340879,83.289,83.241,3.35079711]
[1771778158793,3.87340879,83.286,83.241,3.35079711]
[1771778161496,14.68150879,83.296,83.251,3.27474896]
[1771778161795,3.87340879,83.295,83.251,3.27474896]
[1771778162794,3.87340879,83.292,83.251,3.27474896]
[1771778165095,3.87340879,83.292,83.261,3.30228034]
[1771778165298,10.8073,83.302,83.261,3.30228034]
[1771778165499,3.87340879,83.301,83.261,3.30228034]
[1771778167599,3.87340879,83.313,83.28,5.93511001]
[1771778169193,3.87340879,83.313,83.28,3.35171068]
[1771778169401,3.87340879,83.313,83.28,5.93511001]
[1771778169600,3.87340879,83.313,83.28,3.35171068]
[1771778171701,3.87340879,83.313,83.28,5.9342131]
[1771778172898,3.87340879,83.313,83.28,3.35171068]
[1771778174701,3.87340879,83.313,83.28,5.9342131]
[1771778175104,3.87340879,83.313,83.28,3.35171068]
[1771778176808,3.0,83.316,83.281,3.37635342]
[1771778177300,3.94888597,83.323,83.281,3.37635342]
[1771778177301,255.22935066,83.318,83.281,3.37635342]
[1771778179396,3.94888597,83.318,83.281,3.37635342]
[1771778193716,3.94888597,83.318,83.283,3.4968992]
[1771778194618,3.94888597,83.309,83.273,10.812]
[1771778194918,3.94888597,83.299,83.262,3.51066888]
[1771778196716,3.94888597,83.299,83.263,10.8133]
[1771778201422,3.94888597,83.299,83.263,14.20602469]
[1771778201820,3.94888597,83.299,83.263,3.39272469]
[1771778208324,3.94888597,83.299,83.27,2.58250242]
[1771778211030,3.94888597,83.299,83.263,3.39272469]
[1771778213130,3.94888597,83.299,83.261,10.8136]
[1771778213131,3.94888597,83.299,83.26,2.58250242]
[1771778214233,3.94888597,83.299,83.254,3.38952273]
[1771778216934,3.94888597,83.299,83.256,10.8142]
[1771778218637,3.94888597,83.299,83.26,2.58250242]
[1771778221629,3.94888597,83.299,83.248,22.40478431]
[1771778221630,3.94888597,83.299,83.271,3.36286335]
[1771778221830,3.82709315,83.316,83.28,2.58250242]
[1771778222137,8.84300323,83.317,83.28,2.58250242]
[1771778222138,3.82709315,83.314,83.28,2.58250242]
[1771778222539,3.82709315,83.314,83.271,3.36286335]
[1771778223040,468.59546414,83.328,83.233,179.50166926]
[1771778223041,3.82709315,83.301,83.26,2.58250242]
[1771778223341,3.82709315,83.301,83.251,3.37418006]
[1771778223535,3.82709315,83.299,83.251,3.37418006]
[1771778224240,3.82709315,83.299,83.261,3.37418006]
[1771778226742,3.82709315,83.308,83.271,3.32952534]
[1771778227436,3.82709315,83.307,83.271,3.32952534]
[1771778228837,3.65775015,83.304,83.271,3.32952534]
[1771778245646,4.05190748,83.313,83.271,3.32952534]
[1771778246748,4.05190748,83.313,83.27,2.58292728]
[1771778246749,4.05190748,83.309,83.261,3.3894461]
[1771778248653,4.05190748,83.309,83.261,14.2030461]
[1771778248854,4.05190748,83.309,83.262,3.23389447]
[1771778249654,4.05190748,83.309,83.264,10.8132]
[1771778249954,4.05190748,83.309,83.264,14.04709447]
[1771778251455,4.05190748,83.309,83.265,3.23472643]
[1771778276875,4.05190748,83.309,83.267,3.09514615]
[1771778277073,3.71043477,83.317,83.271,3.09514615]
[1771778277275,8.86041661,83.316,83.271,3.09514615]
[1771778277574,8.86041661,83.315,83.271,3.09514615]
[1771778277769,8.86041661,83.314,83.271,3.09514615]
[1771778277970,8.86041661,83.313,83.271,3.09514615]
[1771778278170,8.86041661,83.312,83.271,3.09514615]
[1771778278465,8.86041661,83.311,83.271,3.09514615]
[1771778278665,3.71043477,83.317,83.271,3.09514615]
[1771778278865,3.71043477,83.313,83.271,3.09514615]
[1771778279071,3.71043477,83.309,83.271,3.09514615]
[1771778282677,3.71043477,83.309,83.261,3.06358121]
[1771778283179,3.71043477,83.309,83.263,3.06358121]
[1771778300087,3.73538563,83.304,83.255,22.40478431]
[1771778300391,3.73538563,83.289,83.252,3.01665493]
[1771778305998,3.73538563,83.281,83.242,3.01295873]
[1771778306195,3.73538563,83.279,83.242,3.01295873]
[1771778321113,3.75282127,83.277,83.232,2.99741353]
[1771778321308,3.75282127,83.269,83.232,2.99741353]
[1771778322117,2.58328984,83.26,83.212,2.99741353]
[1771778322415,3.75282127,83.259,83.212,2.99741353]
[1771778324618,3.75282127,83.249,83.212,2.99741353]
[1771778326819,2.58328984,83.25,83.2,2.58328984]
[1771778326820,3.75282127,83.245,83.203,2.96732074]
[1771778328022,3.75282127,83.239,83.203,2.96732074]
[1771778329820,3.75282127,83.238,83.203,2.96732074]
[1771778333124,3.75282127,83.236,83.194,2.95364409]
[1771778335231,3.75282127,83.236,83.201,3.11608588]
[1771778346044,10.8151,83.251,83.211,3.06464285]
[1771778346240,3.75282127,83.25,83.211,3.06464285]
[1771778353553,10.8151,83.251,83.221,3.16700268]
[1771778355347,3.766058,83.268,83.231,3.16635834]
[1771778356754,3.766058,83.261,83.231,3.16635834]
[1771778360949,3.766058,83.259,83.219,3.13053791]
[1771778364949,10.8149,83.252,83.219,3.13053791]
[1771778365153,3.766058,83.251,83.219,3.13053791]
[1771778366250,3.766058,83.251,83.2,2.58669179]
[1771778366251,2.58669179,83.25,83.201,3.12955448]
[1771778366556,3.766058,83.249,83.201,3.12955448]
[1771778367655,3.766058,83.249,83.203,3.13448093]
[1771778372059,3.766058,83.249,83.212,22.40478431]
[1771778374057,3.766058,83.249,83.19,29.98146332]
[1771778374058,3.766058,83.229,83.208,8.431e-05]
[1771778374259,3.766058,83.219,83.182,3.1335677]
[1771778380766,3.766058,83.219,83.17,2.58669179]
[1771778380968,3.766058,83.219,83.171,3.10933954]
[1771778381769,3.766058,83.219,83.171,13.93453954]
[1771778382164,3.766058,83.219,83.175,3.11116827]
[1771778382361,3.766058,83.219,83.18,5.69786006]
[1771778382865,3.766058,83.219,83.18,3.11116827]
[1771778383364,3.766058,83.219,83.171,10.8253]
[1771778383965,3.7421704,83.209,83.167,3.1222284]
[1771778394278,3.7421704,83.209,83.171,3.34238652]
[1771778398280,3.7421704,83.209,83.181,3.3417429]
[1771778398686,3.7421704,83.223,83.181,3.3417429]
[1771778401890,3.7421704,83.221,83.181,3.3417429]
[1771778405492,10.8188,83.222,83.181,3.3417429]
[1771778405493,3.7421704,83.219,83.181,3.3417429]
[1771778414800,3.91037895,83.228,83.181,3.3417429]
[1771778419401,3.91037895,83.225,83.181,3.3417429]
[1771778423804,2.58847357,83.22,83.181,3.3417429]
[1771778424607,3.91037895,83.225,83.185,3.28928203]
[1771778424806,3.0,83.229,83.185,3.28928203]
[1771778425106,3.91037895,83.228,83.185,3.28928203]
[1771778425709,3.91037895,83.228,83.187,14.08120353]
[1771778425910,3.91037895,83.228,83.188,3.25790353]
[1771778440422,3.91037895,83.228,83.191,3.21507286]
[1771778441823,3.91037895,83.228,83.193,3.23340674]
[1771778444831,3.0,83.248,83.174,323.36021687]
[1771778444832,4.00321027,83.264,83.211,3.29157904]
[1771778445833,2.58847357,83.26,83.211,3.29157904]
[1771778446033,4.00321027,83.259,83.211,3.29157904]
[1771778447435,4.00321027,83.259,83.22,2.58847357]
[1771778447738,4.00321027,83.259,83.221,3.32845943]
[1771778451835,4.00321027,83.259,83.225,3.29227112]
[1771778452040,4.00321027,83.27,83.231,3.29227112]
[1771778452640,4.00321027,83.281,83.241,3.29227112]
[1771778459643,4.00321027,83.279,83.241,3.29227112]
[1771778460039,4.00321027,83.269,83.224,3.32438466]
[1771778460545,4.00321027,83.269,83.231,3.32438466]
[1771778461642,4.00321027,83.269,83.232,10.8173]
[1771778461843,4.00321027,83.269,83.233,3.35862374]
[1771778472547,4.00321027,83.269,83.234,3.36858954]
[1771778472745,4.00321027,83.269,83.23,2.58847357]
[1771778474750,4.00321027,83.269,83.222,3.36858954]
[1771778475354,4.00321027,83.269,83.231,3.36796181]
[1771778489059,3.86212827,83.285,83.241,3.35867713]
[1771778495662,2.58492765,83.28,83.241,3.35867713]
[1771778496166,3.86212827,83.279,83.241,3.35867713]
[1771778506678,3.86212827,83.279,83.243,3.42983213]
[1771778506977,470.14436297,83.304,83.251,3.42983213]
[1771778506978,3.90599584,83.285,83.251,3.42983213]
[1771778508185,3.90599584,83.301,83.251,3.42983213]
[1771778508686,3.90599584,83.301,83.25,2.58492765]
[1771778508687,3.90599584,83.301,83.256,3.43342329]
[1771778508878,3.90599584,83.301,83.26,2.58492765]
[1771778509078,3.90599584,83.301,83.261,3.43342329]
[1771778509678,3.90599584,83.299,83.261,3.43342329]
[1771778527999,3.90599584,83.289,83.261,3.43342329]
[1771778545917,3.86828136,83.299,83.261,3.43342329]
[1771778584245,470.14436297,83.304,83.264,3.50856996]
[1771778584548,3.91852437,83.308,83.271,3.50856996]
[1771778585641,3.91852437,83.308,83.275,3.55100481]
[1771778587145,3.91852437,83.308,83.277,3.55100481]
[1771778587343,2.58401029,83.33,83.281,3.7832415]
[1771778588745,2.58401029,83.33,83.287,3.68682066]
[1771778589250,3.88759243,83.329,83.287,3.68682066]
[1771778590646,3.88759243,83.329,83.289,10.8099]
[1771778591751,3.88759243,83.329,83.289,14.49672066]
[1771778591946,3.88759243,83.329,83.29,3.68682066]
[1771778592146,2.58401029,83.32,83.29,3.68682066]
[1771778593251,2.58401029,83.32,83.291,10.8097]
[1771778593455,3.88759243,83.329,83.292,3.68682066]
[1771778594751,3.88759243,83.329,83.293,10.8095]
[1771778595353,3.88759243,83.329,83.292,3.68682066]
[1771778597255,3.88759243,83.329,83.288,3.70403465]
[1771778598451,2.58401029,83.32,83.288,3.70403465]
[1771778598654,6.39693711,83.32,83.288,3.70403465]
[1771778599151,3.81292682,83.32,83.288,3.70403465]
[1771778601545,3.81292682,83.32,83.26,22.3784371]
[1771778601746,3.81292682,83.289,83.261,10.8136]
[1771778604354,3.81292682,83.309,83.264,3.70403465]
[1771778605748,3.81292682,83.309,83.266,3.70403465]
[1771778607853,3.81292682,83.309,83.267,10.8128]
[1771778609853,3.81292682,83.309,83.267,14.51683465]
[1771778611956,3.81292682,83.299,83.253,3.70403465]
[1771778612151,3.81292682,83.299,83.261,3.70403465]
[1771778613759,3.81292682,83.299,83.263,3.70403465]
[1771778618759,3.88839645,83.308,83.271,3.7754651]
[1771778619964,3.88839645,83.329,83.281,3.7754651]
[1771778621567,3.88839645,83.325,83.281,3.7754651]
[1771778628569,3.88839645,83.325,83.3,2.58222644]
[1771778628972,3.88839645,83.325,83.291,3.7754651]
[1771778629773,3.88839645,83.325,83.291,14.5852651]
[1771778630475,3.88839645,83.325,83.292,3.7754651]
[1771778635378,3.88839645,83.336,83.292,3.7754651]
[1771778636977,3.88839645,83.329,83.292,3.7754651]
[1771778653391,3.88839645,83.329,83.282,10.8109]
[1771778654092,3.88839645,83.329,83.283,3.95478065]
[1771778655895,3.88839645,83.329,83.285,3.89962711]
[1771778661408,3.88839645,83.329,83.287,3.89962711]
[1771778665605,3.88839645,83.329,83.289,3.89962711]
[1771778670712,3.81555522,83.326,83.289,3.89962711]
[1771778684218,3.81555522,83.326,83.278,3.84893006]
[1771778692930,3.66391945,83.319,83.278,3.84893006]
[1771778700432,3.66391945,83.309,83.269,22.3784371]
[1771778700637,3.66391945,83.299,83.258,3.78063759]
[1771778703134,3.66391945,83.299,83.261,3.78063759]
[1771778703327,3.66391945,83.309,83.261,3.78063759]
[1771778703527,3.0,83.319,83.281,3.78063759]
[1771778703737,3.66391945,83.321,83.281,3.78063759]
[1771778709241,3.66391945,83.321,83.282,3.83877878]
[1771778709438,2.58173036,83.33,83.282,3.83877878]
[1771778709741,3.69311043,83.331,83.291,3.83877878]
[1771778713841,3.69311043,83.329,83.291,3.83877878]
[1771778730562,3.0,83.339,83.29,2.58182298]
[1771778730563,3.0,83.339,83.294,3.9698774]
[1771778730865,2.58182298,83.35,83.301,3.9698774]
[1771778731267,3.77201059,83.349,83.301,3.9698774]
[1771778733368,3.77201059,83.358,83.311,3.9698774]
[1771778738169,3.0,83.384,83.321,3.9081045]
[1771778738170,220.19105256,83.362,83.321,3.9081045]
[1771778738365,3.77201059,83.362,83.321,3.9081045]
[1771778742367,3.77201059,83.362,83.326,3.9081045]
[1771778743667,3.77201059,83.362,83.328,3.9081045]
[1771778745569,3.84394067,83.339,83.3,3.9081045]
[1771778746672,3.84394067,83.339,83.301,3.9081045]
[1771778747770,3.84394067,83.339,83.304,10.8079]
[1771778749170,3.84394067,83.339,83.304,14.7160045]
[1771778749363,3.84394067,83.339,83.305,3.9081045]
[1771778758371,3.84394067,83.339,83.3,2.58182298]
[1771778758372,3.84394067,83.339,83.307,3.9081045]
[1771778758670,2.58182298,83.37,83.321,3.9081045]
[1771778758976,3.0,83.378,83.27,62.0]
[1771778758977,3.0,83.378,83.334,3.9081045]
[1771778759175,14.83597466,83.417,83.341,3.9081045]
[1771778759176,10.7951,83.404,83.341,3.9081045]
[1771778759376,2.58182298,83.39,83.341,3.9081045]
[1771778759880,2.58182298,83.37,83.33,3.9081045]
[1771778760375,2.58182298,83.38,83.331,3.9081045]
[1771778760579,3.84394067,83.379,83.331,3.9081045]
[1771778761781,3.84394067,83.379,83.333,3.9081045]
[1771778763775,3.84394067,83.379,83.34,2.58182298]
[1771778763979,3.84394067,83.379,83.341,3.9081045]
[1771778768778,3.84394067,83.379,83.343,3.83640982]
[1771778773087,4.04705782,83.39,83.351,3.83640982]
[1771778773786,2.58182298,83.4,83.35,2.58182298]
[1771778773787,4.04705782,83.399,83.353,3.83640982]
[1771778774281,4.04705782,83.399,83.361,3.83640982]
[1771778774479,3.0,83.438,83.371,4.01782854]
[1771778774480,3.80256787,83.414,83.371,4.01782854]
[1771778774685,3.80256787,83.414,83.332,36.06]
[1771778774686,3.80256787,83.414,83.38,6.59965152]
[1771778774886,3.80256787,83.414,83.381,4.01782854]
[1771778775287,3.80256787,83.432,83.391,4.01782854]
[1771778775483,3.80256787,83.432,83.4,2.58182298]
[1771778775683,3.80256787,83.432,83.401,4.01782854]
[1771778776984,3.80256787,83.449,83.401,4.01782854]
[1771778777787,3.80256787,83.449,83.411,4.01782854]
[1771778778686,3.80256787,83.439,83.391,4.01782854]
[1771778778882,3.80256787,83.429,83.391,4.01782854]
[1771778782187,3.80256787,83.429,83.392,4.01782854]
[1771778783491,3.80256787,83.429,83.382,4.01782854]
[1771778787890,3.80256787,83.429,83.387,4.01782854]
[1771778788097,3.80256787,83.429,83.391,4.01782854]
[1771778789201,3.80256787,83.429,83.38,2.5755777]
[1771778789391,3.80256787,83.419,83.375,4.01782854]
[1771778789796,3.80256787,83.409,83.364,4.01782854]
[1771778792907,3.80256787,83.409,83.37,2.5755777]
[1771778793107,3.80256787,83.429,83.381,4.01782854]
[1771778796415,3.80256787,83.429,83.386,4.01782854]
[1771778798920,3.80256787,83.429,83.388,3.68806532]
[1771778799520,3.80256787,83.429,83.391,3.68806532]
[1771778800319,3.80256787,83.429,83.393,3.68806532]
[1771778800519,3.73406669,83.439,83.393,3.68806532]
[1771778801119,3.73406669,83.439,83.395,3.68806532]
[1771778802216,3.73406669,83.439,83.401,3.68806532]
[1771778806618,3.73406669,83.439,83.403,3.68806532]
[1771778807021,3.73406669,83.449,83.403,3.68806532]
[1771778807219,3.73406669,83.449,83.405,3.68806532]
[1771778808522,3.73406669,83.449,83.407,10.7946]
[1771778808823,3.73406669,83.449,83.4,2.5755777]
[1771778808824,3.73406669,83.449,83.408,3.68806532]
[1771778809814,3.73406669,83.449,83.412,3.68806532]
[1771778811324,2.5755777,83.46,83.422,3.68806532]
[1771778812026,2.5755777,83.46,83.424,3.68806532]
[1771778812322,3.73406669,83.462,83.424,3.68806532]
[1771778813717,3.0,83.479,83.383,35.98]
[1771778813718,3.73406669,83.459,83.411,3.68806532]
[1771778813925,3.73406669,83.449,83.401,3.68806532]
[1771778814123,3.73406669,83.439,83.401,3.68806532]
[1771778815622,2.5755777,83.43,83.39,6.26364302]
[1771778815829,3.73406669,83.429,83.39,3.68806532]
[1771778816728,3.73406669,83.429,83.391,3.68806532]
[1771778820721,6.30964439,83.44,83.391,3.68806532]
[1771778820926,3.73406669,83.44,83.401,3.68806532]
[1771778822025,3.73406669,83.44,83.39,2.5755777]
[1771778822227,3.73406669,83.429,83.38,2.5755777]
[1771778823231,3.73406669,83.419,83.37,2.5755777]
[1771778823828,3.73406669,83.419,83.37,6.26364302]
[1771778824828,3.73406669,83.419,83.381,3.68806532]
[1771778825832,3.73406669,83.419,83.382,14.48596532]
[1771778826133,3.73406669,83.419,83.383,3.68806532]
[1771778831432,3.73406669,83.419,83.372,14.7298305]
[1771778831735,3.73406669,83.419,83.373,3.9306305]
[1771778832133,3.6759858,83.436,83.381,3.9306305]
[1771778832835,3.6759858,83.436,83.391,3.9306305]
[1771778835735,3.79450462,83.443,83.397,10.796]
[1771778835941,3.79450462,83.443,83.401,3.99035153]
[1771778838531,3.79450462,83.455,83.411,3.99035153]
[1771778838735,3.79450462,83.455,83.369,65.96146332]
[1771778838736,3.79450462,83.469,83.421,3.99035153]
[1771778839841,3.79450462,83.468,83.421,3.99035153]
[1771778841738,3.79450462,83.468,83.423,3.99035153]
[1771778842042,3.0,83.502,83.431,3.99035153]
[1771778842043,3.79450462,83.478,83.431,3.99035153]
[1771778842339,14.78513374,83.518,83.385,65.96146332]
[1771778842340,38.97512998,83.499,83.45,2.5755777]
[1771778842642,38.97512998,83.499,83.44,2.5755777]
[1771778843338,38.97512998,83.499,83.44,2.57191118]
[1771778843743,38.97512998,83.499,83.45,2.57191118]
[1771778843940,38.97512998,83.499,83.46,2.57191118]
[1771778845241,38.97104951,83.52,83.47,2.57191118]
[1771778845436,41.54296069,83.52,83.47,2.57191118]
[1771778847741,23.39742878,83.561,83.46,2.57191118]
[1771778847742,38.9865439,83.509,83.46,2.57191118]
[1771778848844,38.9865439,83.509,83.43,62.0]
[1771778848845,38.9865439,83.489,83.44,2.57191118]
[1771778850147,38.9865439,83.489,83.45,2.57191118]
[1771778850451,38.9865439,83.489,83.403,35.98]
[1771778850648,38.9865439,83.489,83.45,2.57191118]
[1771778858859,38.9865439,83.489,83.441,10.7903]
[1771778859459,38.99447418,83.479,83.43,2.57191118]
[1771778861960,38.99447418,83.479,83.44,2.57191118]
[1771778865660,38.99447418,83.479,83.431,10.7915]
[1771778866361,38.99374005,83.469,83.41,2.57191118]
[1771778866663,38.99374005,83.459,83.41,2.57191118]
[1771778869563,38.99374005,83.459,83.403,10.7952]
[1771778870460,39.0078873,83.449,83.403,10.7952]
[1771778870764,39.0078873,83.449,83.4,2.57191118]
[1771778871965,39.0078873,83.449,83.393,10.7964]
[1771778872165,39.0078873,83.449,83.4,2.57191118]
[1771778873366,39.0078873,83.449,83.41,2.57191118]
[1771778874971,39.10500915,83.479,83.43,2.57191118]
[1771778875669,38.97722846,83.476,83.43,2.57191118]
[1771778886176,38.89939599,83.473,83.43,2.57191118]
[1771778886371,38.89939599,83.469,83.42,2.57191118]
[1771778888483,38.89939599,83.469,83.43,2.57191118]
[1771778891681,38.89939599,83.469,83.421,10.7929]
[1771778893785,38.89939599,83.469,83.43,2.57191118]
[1771778894381,38.89939599,83.469,83.43,10.7917]
[1771778894582,38.89939599,83.469,83.43,13.36361118]
[1771778894782,38.89939599,83.469,83.43,2.57191118]
[1771778900390,38.89939599,83.469,83.42,2.57191118]
[1771778904091,38.89939599,83.469,83.418,10.7932]
[1771778905296,38.89939599,83.469,83.42,2.57363794]
[1771778905698,38.76665735,83.454,83.41,22.3784371]
[1771778905898,38.76665735,83.449,83.39,2.57363794]
[1771778906688,38.76665735,83.446,83.39,2.57363794]
[1771778909399,38.76665735,83.446,83.4,2.57363794]
[1771778912404,38.77704607,83.439,83.39,2.57363794]
[1771778916304,38.77704607,83.439,83.393,10.7965]
[1771778916494,38.77704607,83.439,83.4,2.57363794]
[1771778920505,38.77704607,83.439,83.393,10.7965]
[1771778921108,38.77704607,83.439,83.4,2.57363794]
[1771778924311,38.77704607,83.439,83.393,10.7965]
[1771778932515,38.77704607,83.439,83.4,2.57363794]
[1771778932716,38.77704607,83.439,83.393,10.7965]
[1771778937616,38.77704607,83.439,83.38,22.3784371]
[1771778937617,38.94393849,83.429,83.382,10.798]
[1771778937817,41.94393849,83.429,83.37,2.57363794]
[1771778939725,41.94393849,83.429,83.372,10.7992]
[1771778941327,41.94393849,83.429,83.38,2.57363794]
[1771778943220,41.94393849,83.429,83.372,10.7992]
[1771778943427,41.94393849,83.429,83.38,2.57363794]
[1771778945626,10.7922,83.427,83.38,2.57363794]
[1771778945823,10.7922,83.427,83.363,10.8004]
[1771778945824,38.94347766,83.419,83.363,10.8004]
[1771778947730,38.94347766,83.419,83.37,2.57363794]
[1771778947930,38.94347766,83.419,83.363,10.8004]
[1771778947931,38.94635909,83.417,83.363,10.8004]
[1771778948230,38.94635909,83.409,83.363,10.8004]
[1771778949528,3.0,83.418,83.39,2.57363794]
[1771778949733,38.94630138,83.422,83.39,2.57363794]
[1771778954135,38.92711108,83.449,83.4,2.57363794]
[1771778954334,41.92711108,83.449,83.4,2.57363794]
[1771778958135,41.92711108,83.449,83.392,10.7966]
[1771778969648,41.92711108,83.449,83.4,2.574879]
[1771778970346,41.92711108,83.449,83.392,10.7966]
[1771778975157,41.92711108,83.449,83.4,10.7956]
[1771778984771,41.92711108,83.449,83.41,2.574879]
[1771778984971,38.92711108,83.449,83.41,2.574879]
[1771778985672,38.92711108,83.449,83.416,10.7934]
[1771778988878,38.92711108,83.449,83.42,2.574879]
[1771778989477,38.92711108,83.449,83.416,10.7934]
[1771778990171,38.92711108,83.449,83.41,2.574879]
[1771778994184,38.93854815,83.458,83.42,2.574879]
[1771778995584,38.93854815,83.458,83.419,10.7931]
[1771778995781,38.93854815,83.458,83.41,2.574879]
[1771778995979,3.0,83.478,83.408,10.7945]
[1771778995980,38.94786483,83.449,83.408,10.7945]
[1771778996983,38.94786483,83.449,83.41,2.574879]
[1771779002984,38.96615721,83.439,83.394,22.3784371]
[1771779003189,38.96615721,83.439,83.39,24.9533161]
[1771779003490,38.96615721,83.439,83.39,2.574879]
[1771779009996,38.96615721,83.439,83.381,10.798]
[1771779012493,38.96615721,83.439,83.387,22.3784371]
[1771779012999,38.96615721,83.439,83.39,2.574879]
[1771779017202,38.96615721,83.439,83.385,22.3784371]
[1771779017403,38.96615721,83.439,83.39,2.574879]
[1771779019505,38.84644248,83.429,83.384,22.3784371]
[1771779019709,38.84644248,83.429,83.381,10.798]
[1771779021701,2.574879,83.42,83.381,10.798]
[1771779021906,38.83909925,83.419,83.375,22.3784371]
[1771779022114,38.83909925,83.419,83.374,22.3784371]
[1771779022405,38.83909925,83.419,83.37,2.574879]
[1771779023707,38.83909925,83.419,83.376,10.7987]
[1771779023911,38.83909925,83.419,83.37,2.574879]
[1771779025110,38.77708703,83.409,83.367,10.7998]
[1771779025409,38.77708703,83.409,83.36,443.94974936]
[1771779027912,38.77708703,83.409,83.38,2.57672453]
[1771779028705,38.78283987,83.427,83.381,10.7981]
[1771779028910,38.78283987,83.427,83.39,2.57672453]
[1771779030410,38.78283987,83.427,83.381,10.7981]
[1771779043925,38.80132082,83.409,83.36,443.94974936]
[1771779049924,38.81050921,83.399,83.36,441.37302483]
[1771779054230,38.81050921,83.399,83.351,10.802]
[1771779058834,38.81050921,83.399,83.36,2.57672453]
[1771779061733,38.81050921,83.399,83.351,10.802]
[1771779084345,38.81050921,83.399,83.359,10.8009]
[1771779085151,38.81050921,83.399,83.35,2.57672453]
[1771779087450,38.81050921,83.399,83.35,2.5777794]
[1771779094957,38.81050921,83.399,83.348,10.8023]
[1771779102466,38.81050921,83.399,83.34,2.5777794]
[1771779102467,38.81050921,83.399,83.35,10.8021]
[1771779103365,38.81050921,83.399,83.358,10.801]
[1771779103760,38.81050921,83.399,83.36,2.5777794]
[1771779103960,38.81050921,83.399,83.358,10.801]
[1771779106965,38.69177916,83.389,83.358,10.801]
[1771779107466,38.69177916,83.389,83.35,33.1805371]
[1771779112568,38.69177916,83.389,83.35,10.8021]
[1771779117276,38.69177916,83.389,83.343,22.3784371]
[1771779117873,38.69177916,83.389,83.34,2.5777794]
[1771779121185,38.75798213,83.404,83.36,2.5777794]
[1771779122781,38.75798213,83.404,83.37,2.5777794]
[1771779123289,38.75798213,83.404,83.361,10.8006]
[1771779125688,38.75798213,83.404,83.37,2.5777794]
[1771779126386,38.75798213,83.404,83.38,2.5777794]
[1771779127092,38.75048866,83.436,83.39,2.5777794]
[1771779127690,38.75048866,83.436,83.359,445.40925767]
[1771779127691,38.75048866,83.436,83.4,2.5777794]
[1771779127890,38.75048866,83.436,83.41,2.5777794]
[1771779128887,38.75048866,83.436,83.4,2.5777794]
[1771779129395,2.5777794,83.46,83.359,481.40925767]
[1771779129396,38.75053247,83.459,83.41,2.5777794]
[1771779131984,38.75053247,83.459,83.404,10.7951]
[1771779133997,38.75053247,83.459,83.41,2.5777794]
[1771779135297,38.75053247,83.459,83.413,10.7938]
[1771779135497,38.75053247,83.459,83.42,2.5777794]
[1771779136000,38.75053247,83.459,83.413,10.7938]
[1771779147097,38.75053247,83.459,83.41,2.5777794]
[1771779147303,3.0,83.477,83.39,62.0]
[1771779147304,38.77591941,83.439,83.39,2.57515798]
[1771779148001,38.77583546,83.429,83.38,2.57515798]
[1771779148803,38.77583546,83.429,83.381,10.798]
[1771779154008,38.77583546,83.429,83.39,2.57515798]
[1771779163417,38.77583546,83.429,83.4,2.57515798]
[1771779164717,38.77583546,83.429,83.397,10.796]
[1771779180737,38.77583546,83.429,83.4,2.57515798]
[1771779181135,2.57515798,83.46,83.41,2.57515798]
[1771779183035,28.94972257,83.459,83.41,2.57515798]
[1771779188142,28.94972257,83.459,83.42,2.57515798]
[1771779188841,28.94972257,83.459,83.41,2.57515798]
[1771779209251,28.94972257,83.459,83.41,2.57372766]
[1771779212455,28.94972257,83.459,83.42,2.57372766]
[1771779215052,28.80819975,83.469,83.43,2.57372766]
[1771779215253,28.80819975,83.469,83.44,2.57372766]
[1771779216655,28.80819975,83.469,83.442,10.7901]
[1771779217456,2.57372766,83.49,83.442,10.7901]
[1771779217651,2.57372766,83.5,83.442,10.7901]
[1771779218156,2.57372766,83.49,83.442,10.7901]
[1771779219654,18.87609323,83.489,83.442,10.7901]
[1771779229760,18.87609323,83.489,83.44,2.57372766]
[1771779229964,18.87609323,83.489,83.454,10.7886]
[1771779230763,18.87609323,83.489,83.45,2.57372766]
[1771779230764,18.87609323,83.489,83.453,10.7887]